Cogmind - Beta 15 @@@ ROGUE MODE // 2025.06.12 @ 05:05:01 Player: Darcyisverycute Result: Destroyed by S-10 Pest with Light Assault Rifle Performance ------------- Evolutions (0) 0 Regions Visited (4) 800 Robots Destroyed (8) 40 Value Destroyed (96) 96 Prototype IDs (23) 460 Alien Tech Used (0) 0 Bonus (300) 300 TOTAL SCORE: 1696 Bonus ------- Aligned with FarCom 300 Cogmind --------- Core Integrity 0/250 Matter 251/300 Energy 98/100 System Corruption 2% Temperature Cool (0) Movement Core (50) Location -9/Mines Parts ------- > --- POWER (1) -------- (None) > --- PROPULSION (2) --- (None) > --- UTILITY (2) ------ (None) > --- WEAPON (2) ------- Longsword +1 > --- INVENTORY (5) ---- Improved Terrain Scanner Core Shielding Core Shielding Small Laser Light Assault Rifle Peak State ------------ > --- POWER ------------ (None) > --- PROPULSION ------- (None) > --- UTILITY ---------- Improved Terrain Scanner Core Shielding > --- WEAPON ----------- Longsword +1 > --- INVENTORY -------- Core Shielding Small Laser Light Assault Rifle Stasis Trap [Rating: 12] Favorites ----------- Power None Propulsion None Utility Seismic Detector Device Seismic Detector Protection Core Shielding Weapon Light Assault Rifle Energy Gun Small Laser Ballistic Gun Light Assault Rifle Slashing Weapon Longsword +1 Build | -11 -10 -10 -10 -9 ------- Run | Yrd Mat Min Exi Min Slots Evolved . | . . . . . Power . | . . . . . Propulsion . | . . . . . Utility . | . . . . . Weapon . | . . . . . Parts Attached 10 | 2 5 1 2 . Power . | . . . . . Engine . | . . . . . Core . | . . . . . Reactor . | . . . . . Propulsion . | . . . . . Treads . | . . . . . Leg . | . . . . . Wheel . | . . . . . Hover . | . . . . . Flight . | . . . . . Utility 5 | 1 2 1 1 . Device 4 | 1 2 1 . . Storage . | . . . . . Processor . | . . . . . Hackware . | . . . . . Protection 1 | . . . 1 . Artifact . | . . . . . Weapon 5 | 1 3 . 1 . Energy Gun 1 | . 1 . . . Energy Cannon . | . . . . . Ballistic Gun 3 | 1 2 . . . Ballistic Cannon . | . . . . . Launcher . | . . . . . Special Weapon . | . . . . . Impact Weapon . | . . . . . Slashing Weapon 1 | . . . 1 . Piercing Weapon . | . . . . . Special Melee Weapon . | . . . . . Unidentified Prototypes . | . . . . . Parts Lost 3 | . 1 2 . . Power . | . . . . . Propulsion . | . . . . . Utility 2 | . 1 1 . . Weapon 1 | . . 1 . . Highest Loss Streak 2 | . 1 2 . . To Critical Strikes . | . . . . . Average Backups 3 | 1 4 3 4 5 Power . | . . . . . Propulsion . | . . . . . Utility 2 | . 2 2 2 3 Weapon 1 | 1 1 1 1 2 Tool/Special . | . . . . . Unused Backups 2 | . 1 . . 1 Power . | . . . . . Propulsion . | . . . . . Utility 1 | . . . . 1 Weapon 1 | . 1 . . . Tool/Special . | . . . . . Average Slot Usage (%) 36 | . 45 50 18 14 Device 16 | . 22 23 6 . Protection 1 | . . . 3 . Ballistic Gun 15 | . 21 26 1 . Slashing Weapon 2 | . . . 7 14 Peak Build Rating 12 | 2 4 6 12 8 Average Rating 4 | 1 3 5 6 8 On Entrance 3 | . 2 4 5 8 Naked Turns . | . . . . . Heaviest Build 4 | 2 4 4 4 3 Greatest Support 3 | 3 3 3 3 3 Greatest Overweight (x) 1 | . 1 1 1 . Average Overweight (x) . | . . . . . Largest Inventory Capacity 5 | 5 5 5 5 5 Average Capacity 5 | 5 5 5 5 5 Most Carried 5 | 3 5 5 5 5 Average Carried 4 | 1 4 4 4 5 Final Capacity 5 | 5 5 5 5 5 Final Carried 5 | 3 5 4 5 5 Class Distribution -------------------- 100% | Mutant Dominant Class ---------------- Mutant | -10/Materials Mutant | -10/Mines Mutant | -10/Exiles Mutant | -9/Mines Resources | -11 -10 -10 -10 -9 ----------- Run | Yrd Mat Min Exi Min Matter Collected 327 | 197 119 11 . . Remotely . | . . . . . Salvage Created 165 | 30 106 29 . . Parts 16 | 4 8 4 . . Haulers Intercepted . | . . . . . Recyclers Shooed 1 | . . 1 . . Parts Field Recycled . | . . . . . Retrieved Matter . | . . . . . Parts Self-Destructed . | . . . . . Prevented . | . . . . . Kills | -11 -10 -10 -10 -9 ------- Run | Yrd Mat Min Exi Min Combat Hostiles Destroyed 6 | . 4 2 . . Guns 6 | . 4 2 . . Classes Destroyed 4 | 1 3 . . . Builder 1 | . 1 . . . Tunneler 1 | 1 . . . . Swarmer 5 | . 3 2 . . Grunt 1 | . 1 . . . Best Kill Streak 4 | 1 4 2 . . Combat Bots Only 3 | . 3 2 . . Max Kills in Single Turn 1 | 1 1 1 . . Gunslinging . | . . . . . Exploded . | . . . . . Melee . | . . . . . Uniques/NPCs Destroyed . | . . . . . Combat | -11 -10 -10 -10 -9 -------- Run | Yrd Mat Min Exi Min Hostile Shots Fired 78 | . 55 16 . 7 Missed 24 | . 19 2 . 3 Hits 54 | . 36 14 . 4 Projectile 54 | . 36 14 . 4 Critical Strikes 1 | . . . . 1 Damage Taken 504 | . 353 118 . 33 Core 254 | . 169 58 . 27 Absorbed by Shields . | . . . . . Core Remaining (%) 100 | 100 . . . . Volleys Fired 56 | 9 35 12 . . Largest 2 | 1 2 2 . . Hottest 60 | 20 60 40 . . Shots Fired 80 | 9 48 23 . . Gun 80 | 9 48 23 . . Cannon . | . . . . . Launcher . | . . . . . Special . | . . . . . Kinetic 74 | 9 42 23 . . Thermal 6 | . 6 . . . Explosive . | . . . . . Electromagnetic . | . . . . . Robot Hit Streak 9 | 8 9 3 . . Robot Miss Streak 4 | 1 3 4 . . Penetration Max . | . . . . . Secondary Targets 2 | . 1 1 . . Max Gunslinging Chain 1 | . 1 1 . . Shots Hit Robots 50 | 8 31 11 . . Core Hits 17 | 2 11 4 . . Critical Kills 1 | . 1 . . . Critical Parts Destroyed . | . . . . . Critical Strikes 1 | . 1 . . . Destroy 1 | . 1 . . . Melee Attacks . | . . . . . Impact . | . . . . . Slashing . | . . . . . Piercing . | . . . . . Sneak Attacks . | . . . . . Combat Hostiles . | . . . . . Follow-up Attacks . | . . . . . Damage Inflicted 448 | 62 306 80 . . Guns 440 | 62 298 80 . . Cannons . | . . . . . Explosions . | . . . . . Melee . | . . . . . Ramming 8 | . 8 . . . Kinetic 395 | 62 253 80 . . Thermal 45 | . 45 . . . Explosive . | . . . . . Electromagnetic . | . . . . . Impact . | . . . . . Slashing . | . . . . . Piercing . | . . . . . Highest Corruption 2 | . 2 2 2 2 Average Corruption 2 | . 2 2 2 2 Corruption Purged . | . . . . . Corruption Blocked . | . . . . . Effects 6 | . 1 . 5 . Message Errors 1 | . . . 1 . Matter Fused 1 | . . . 1 . Parts Rejected 1 | . 1 . . . Data Loss (minor) 1 | . . . 1 . Data Loss (major) 2 | . . . 2 . Overload Shots . | . . . . . Overflow Damage . | . . . . . Projectiles . | . . . . . Explosions . | . . . . . Melee . | . . . . . Knockbacks . | . . . . . Impact . | . . . . . Kinetic . | . . . . . Secondary . | . . . . . Self-Inflicted Damage 4 | . 4 . . . Shots . | . . . . . Rammed 1 | . 1 . . . Targets Rammed 1 | . 1 . . . Kicked . | . . . . . Crushed . | . . . . . Highest Temperature 20 | . 20 . . . Average Temperature 6 | . 6 . . . Received Heat Transfer 105 | . 105 . . . Siege Activations . | . . . . . Martial Activations . | . . . . . Shielding Activations . | . . . . . Robots Disrupted . | . . . . . Combat Hostiles . | . . . . . Robots Corrupted . | . . . . . Combat Hostiles . | . . . . . Parts Fried . | . . . . . Impact Corruptions . | . . . . . Robots Melted . | . . . . . Combat Hostiles . | . . . . . Parts Melted . | . . . . . Heat Transferred 100 | . 100 . . . Parts Sabotaged . | . . . . . Parts Stolen . | . . . . . Parts Stripped . | . . . . . Power Chain Reactions . | . . . . . Alert | -11 -10 -10 -10 -9 ------- Run | Yrd Mat Min Exi Min Maximum Alert Level . | . . . . . Low Security (%) 100 | 100 100 100 . 100 Level 1 . | . . . . . Level 2 . | . . . . . Level 3 . | . . . . . Level 4 . | . . . . . Level 5 . | . . . . . High Security . | . . . . . Max Security . | . . . . . Peak Influence 70 | . 65 70 . . Initial 17 | . . 17 . . Average 22 | . 29 23 . . Influence Increases 210 | 5 110 95 . . Destroy 0b10 Robot/C 120 | . 80 40 . . Destroy 0b10 Robot/NC 10 | 5 5 . . . Destroy Leader 20 | . 10 10 . . Lose Combat Pursuer 60 | . 15 45 . . Influence Decreases 210 | 5 65 90 50 . Entered New Map 78 | . . 28 50 . Time Decay 117 | 5 65 47 . . Lost Part 15 | . . 15 . . Squads Dispatched . | . . . . . Investigation . | . . . . . Extermination . | . . . . . Reinforcement . | . . . . . Assault . | . . . . . Garrison . | . . . . . Intercept . | . . . . . Searches Triggered . | . . . . . Construction Impeded . | . . . . . Haulers Reinforced . | . . . . . Active Scanning Responses . | . . . . . Cargo Convoy Interrupts . | . . . . . Stealth | -11 -10 -10 -10 -9 --------- Run | Yrd Mat Min Exi Min Distress Signals 1 | . 1 . . . Communications Jammed . | . . . . . Distress Signals . | . . . . . Times Spotted 17 | . 8 5 . 4 Peak Tracking Total 4 | . 3 2 . 4 Tactical Retreats 3 | . 1 2 . . Traps | -11 -10 -10 -10 -9 ------- Run | Yrd Mat Min Exi Min Traps Triggered 1 | . 1 . . . Indirectly . | . . . . . Trap Hack Attempts . | . . . . . Triggered . | . . . . . Disarmed . | . . . . . Reprogrammed . | . . . . . Reused . | . . . . . Traps Extracted . | . . . . . Installed . | . . . . . Triggered . | . . . . . Most Traps Carried 1 | . . 1 1 . Machines | -11 -10 -10 -10 -9 ---------- Run | Yrd Mat Min Exi Min Machines Disabled . | . . . . . Max in Single Turn . | . . . . . Machines Repaired . | . . . . . Machines Dismantled . | . . . . . Machines Sabotaged . | . . . . . Overloaded Fab Kills . | . . . . . Hacking | -11 -10 -10 -10 -9 --------- Run | Yrd Mat Min Exi Min Machines Accessed 3 | . 2 . 1 . Terminals 2 | . 2 . . . Fabricators . | . . . . . Repair Stations . | . . . . . Recycling Units . | . . . . . Scanalyzers . | . . . . . Garrison Access . | . . . . . Total Hacks 5 | . 4 . 1 . Successful 1 | . . . 1 . Failed 4 | . 4 . . . Catastrophic 3 | . 3 . . . Database Lockouts . | . . . . . Manual 3 | . 2 . 1 . Terminals 4 | . 4 . . . Fabricators . | . . . . . Repair Stations . | . . . . . Recycling Units . | . . . . . Scanalyzers . | . . . . . Garrison Access . | . . . . . Terminal Hacks 1 | . . . 1 . Proto ID Catalog 1 | . . . 1 . Fabricator Hacks . | . . . . . Repair Station Hacks . | . . . . . Recycling Unit Hacks . | . . . . . Scanalyzer . | . . . . . Garrison Access Hacks . | . . . . . Unauthorized Hacks . | . . . . . Terminals . | . . . . . Fabricators . | . . . . . Repair Stations . | . . . . . Recycling Units . | . . . . . Scanalyzers . | . . . . . Garrison Access . | . . . . . Data Cores Recovered . | . . . . . Used . | . . . . . Hacking Detections 2 | . 2 . . . Full Trace Events . | . . . . . Feedback Events . | . . . . . Feedback Blocked . | . . . . . Robot Schematics Acquired . | . . . . . Robots Built . | . . . . . Authchips . | . . . . . Time . | . . . . . Total Robot Build Rating . | . . . . . Part Schematics Acquired . | . . . . . Parts Built . | . . . . . Authchips . | . . . . . Time . | . . . . . Total Part Build Rating . | . . . . . Parts Repaired . | . . . . . Time . | . . . . . Parts Recycled . | . . . . . Recycled Matter . | . . . . . Retrieved Matter . | . . . . . Retrieved Components . | . . . . . Parts Scanalyzed . | . . . . . Part Schematics Acquired . | . . . . . Parts Damaged . | . . . . . Bothacking | -11 -10 -10 -10 -9 ------------ Run | Yrd Mat Min Exi Min Used RIF Installer . | . . . . . Robots Hacked . | . . . . . Non-combat . | . . . . . Combat . | . . . . . Robot Hacks Applied . | . . . . . Relay Couplers Released . | . . . . . Fabnet Peak Effective % . | . . . . . Robots Rewired . | . . . . . Allies Hacked . | . . . . . Hacks Repelled . | . . . . . Allies | -11 -10 -10 -10 -9 -------- Run | Yrd Mat Min Exi Min Total Allies . | . . . . . Largest Group . | . . . . . Highest-Rated Group . | . . . . . Highest-Rated Ally . | . . . . . Total Orders . | . . . . . Ally Attacks . | . . . . . Total Damage . | . . . . . Kills . | . . . . . Allies Corrupted . | . . . . . Allies Melted . | . . . . . Intel | -11 -10 -10 -10 -9 ------- Run | Yrd Mat Min Exi Min Active Infowar (turns) 400 | 10 215 107 68 . Terrain 380 | . 205 107 68 . Seismic 221 | 10 149 62 . . Robot Analysis Total . | . . . . . Derelict Logs Recovered . | . . . . . Drone Launches . | . . . . . Drone Recoveries . | . . . . . Exploration | -11 -10 -10 -10 -9 ------------- Run | Yrd Mat Min Exi Min Turns Passed 542 | 52 215 107 157 11 Spaces Moved 620 | 57 181 96 264 22 Core 620 | 57 181 96 264 22 Treads . | . . . . . Legs . | . . . . . Wheels . | . . . . . Hover . | . . . . . Flight . | . . . . . Fastest Speed 50 | 50 50 50 50 50 Average Speed 61 | 50 65 74 57 50 Slowest Speed 100 | 50 100 100 100 50 Overloaded Moves . | . . . . . Propulsion Burnouts . | . . . . . Robots Hopped . | . . . . . Potential Cave-ins . | . . . . . Cave-ins Triggered . | . . . . . Exploration Rate (%) 30 | 3 35 43 62 9 Regions Visited 4 Branch Regions 3 Pre-discovered Areas . | . . . . . Known Exits Taken . | . . . . . Unknown Exits Taken 4 | 1 1 1 1 . Scrap Searched . | . . . . . Spaces Dug . | . . . . . Terrain Destroyed . | . . . . . Melee . | . . . . . Projectile . | . . . . . AOE . | . . . . . Terrain Rammed . | . . . . . Walls Destroyed . | . . . . . Machines Disabled . | . . . . . Actions | -11 -10 -10 -10 -9 --------- Run | Yrd Mat Min Exi Min Total 711 | 71 236 112 270 22 Wait 11 | 1 9 1 . . Move 616 | 56 180 95 263 22 Hop . | . . . . . Pick Up 8 | 3 4 1 . . Fast Attach 6 | 2 3 . 1 . Attach 4 | . 2 1 1 . Detach 4 | . 1 . 3 . Swap 1 | . . 1 . . Drop 4 | . 1 1 2 . Fire 56 | 9 35 12 . . Melee . | . . . . . Ram 1 | . 1 . . . Kick . | . . . . . Crush . | . . . . . Escape Stasis . | . . . . . Rewire . | . . . . . Trap . | . . . . . Miscellaneous . | . . . . . Route ------- -11/Scrapyard -10/Materials (discovered 2 exits: [*Min] / [Sub]) -10/Mines (discovered 2 exits: [*Mat] / *Exi) -10/Exiles -9/Mines History --------- Turn | Location | Event 3 | -11/Scrapyard | Discovered new exit (range 16) 53 | -11/Scrapyard | Entered Materials 73 | -10/Materials | Discovered new exit (range 10) 126 | -10/Materials | Discovered new exit (range 6) 196 | -10/Materials | Core integrity fell below 50% 268 | -10/Materials | Entered Mines 280 | -10/Mines | Found a hidden stash of uninstalled traps 305 | -10/Mines | Build established: Mutant 333 | -10/Mines | Core integrity fell below 20% 366 | -10/Mines | Discovered new exit (range 12) 373 | -10/Mines | Deemed a non-threat by the Exiles lab entrance 373 | -10/Mines | Discovered new exit (range 5) 375 | -10/Mines | Entered Exiles 389 | -10/Exiles | Met 8R-AWN 397 | -10/Exiles | Met EX-HEX 411 | -10/Exiles | Met EX-BIN 418 | -10/Exiles | Aligned with FarCom system 419 | -10/Exiles | Given EX-Vault access code 432 | -10/Exiles | Opened EX-Vault 442 | -10/Exiles | Found Longsword +1 464 | -10/Exiles | Warned to stay clear of 0b10 Research branches 493 | -10/Exiles | Met EX-DEC 526 | -10/Exiles | Discovered new exit (range 14) 532 | -10/Exiles | Left Exiles lab with Longsword +1 532 | -10/Exiles | Entered Mines 533 | -9/Mines | Assembled infested the area 543 | -9/Mines | Destroyed by S-10 Pest with Light Assault Rifle Last Messages --------------- something like 1234 which I did last time as a little joke and some thief managed to sneak in here and steal a few of HEX's prototypes. 00481_ Dropped Stasis Trap. EX-DEC: Ah I see we have a visitor. One wrong move in here and I'll invert your atomic chain! 00495_ EX-DEC: "Oops, I hope HEX didn't hear that..." 00499_ System corrupted: Matter fused (-7). 00517_ Extracted 2 energy. 00518_ Extracted 1 energy. 00519_ System corrupted: Substantial component data lost. 00526_ EXIT=FOUND LOCATION=UNKNOWN GOAL=ESCAPE 00532_ Receiving FarCom transmissions... 00533_ ALERT: Infestation in the mines, dispatching Demolisher response squad. Map ----- +----------------------------------------------------+ | ????????????????????????????????? | | ????????????????????????????????? | | ????????????????????????????????? | | ????????????????????????????????? | | ????????????????????????????????? | | ????????????????????????????????? | | ????????????????????????????????? | | ????????????????????????????????? | | ????????????????????????????????? | | ????????????????????????????????? | | ????????????????????????????????? | | ????????????????????????????????? | | ????????????????????????????????? | | ????????????????????????????????? | | ????????????????????????????????? | | ????????????????????????????????? | | ????????????????????????????????? | | ????????????????????????????????? | | ???????####?????????????????????? | | ???????# ?????????????????????? | | ???????# #?????????????????????? | | ???????# #?????????????????????? | | ?????### #?????????????????????? | | ????## #?????????????????????? | | ???## #####?????????????????? | | ??## @ ##????????????????? | | ??# ##???????????????? | | ??# #???????????????? | | ??## #???????????????? | | ???## ## ##???????????????? | | ????####?##s ###??????????????? | | ??????????# #??????????????? | | ??????????# s # #??????????????? | | ??????????## s##?#??????????????? | | ???????????## #?????????????????? | | ????????????#s#?????????????????? | | ????????????# #?????????????????? | | ???#######??# #?????????????????? | | ???# #??# #?????????????????? | | ???# """ #### ## ##?????????????? | | ???# """ #?????????????? | | ???# """ ######## #?????????????? | | ???# #??????????????????????? | | ???# #??????????????????????? | | ???# #??????????????????????? | | ???# #??????????????????????? | | ???# #??????????????????????? | | ???# #??????????????????????? | | ???#T#####??????????????????????? | | ???##???????????????????????????? | +----------------------------------------------------+ Best States ------------- Heat Dissipation 25 Energy Generation 5 Energy Capacity 100 Matter Stores 300 Matter Capacity 300 Sight Range 16 Terrain Scan Range 16 Terrain Scan Density 10 Core Shielding 20 Evasion (%) 50 Item Schematics ----------------- None Robot Schematics ------------------ None Fabricated ------------ Nothing Repaired ---------- Nothing Alien Tech Used ----------------- None Achievements -------------- None Challenges ------------ None Game ------ Seed DirtyMappingTelecube Manual? 0 Play Time 00:05:34 Cumulative 295.8 hours Start 2025.06.12 @ 04:51:02 End 2025.06.12 @ 05:05:01 Sessions 1 Manual Loads 0 Difficulty Rogue Special Mode None Game No. 154 Rogue 146 Adventurer 8 Explorer 0 Win Type - Total 15 Types 8/0/2/2/0/0/1/0/1/1 Lore% 88 Gallery% 87 Achievement% 80 Wizard Run 0 Options --------- Layout 2 ASCII 0 Keyboard 1 Movement Numpad Keybinds 1 Fullscreen 1 Font 24/Smallcaps Map View 50x44 Zoom Use 0% Tactical HUD 1 Map Filters SATURATION(78)|BRIGHTNESS(110) Filters SHIFT_HUE(220) Steam 1 RUN: 54c3786c-d36f-41a2-985f-77b21015f867